bitfinex-derivatives/quotes_BTCF0:USTF0_20240817
["timestamp","ask_amount","ask_price","bid_price","bid_amount"]
[1723867828378,0.05071572,59131.0,59130.0,0.067626]
[1723867828575,0.05071572,59131.0,59130.0,0.29159638]
[1723867829080,0.05071572,59131.0,59130.0,0.27386474]
[1723867829379,0.41151572,59132.0,59130.0,0.20633475]
[1723867829574,0.41151572,59132.0,59131.0,0.13071638]
[1723867829780,0.41151572,59132.0,59131.0,0.23218997]
[1723867829979,0.3608,59132.0,59131.0,0.24991352]
[1723867830573,0.3708,59132.0,59131.0,0.24991352]
[1723867831072,0.3818,59132.0,59131.0,0.24991352]
[1723867831273,0.43342538,59132.0,59131.0,0.24991352]
[1723867831471,0.43342538,59132.0,59131.0,0.24991353]
[1723867832181,0.43342538,59132.0,59131.0,0.28277517]
[1723867832475,0.07262538,59132.0,59131.0,0.28277517]
[1723867833180,0.022,59132.0,59131.0,0.28277517]
[1723867834279,0.1155,59132.0,59131.0,0.18927517]
[1723867834480,0.1155,59132.0,59131.0,0.15206566]
[1723867835375,0.1155,59132.0,59131.0,0.10148047]
[1723867836371,0.1155,59132.0,59130.0,0.11821119]
[1723867836997,0.1155,59132.0,59131.0,0.03720952]
[1723867837482,0.1155,59132.0,59131.0,0.10148051]
[1723867838179,0.1155,59132.0,59130.0,0.11821119]
[1723867838375,0.1155,59132.0,59131.0,0.10148051]
[1723867838572,0.1045,59132.0,59131.0,0.10148051]
[1723867838777,0.1145,59132.0,59131.0,0.10148051]
[1723867838974,0.1135,59132.0,59130.0,0.11821119]
[1723867839169,0.1135,59132.0,59130.0,0.067626]
[1723867839889,0.1145,59132.0,59130.0,0.067626]
[1723867840184,0.1155,59132.0,59131.0,0.10148051]
[1723867840385,0.1155,59132.0,59131.0,0.10144051]
[1723867840585,0.1145,59132.0,59131.0,0.10144051]
[1723867840787,0.1145,59132.0,59131.0,0.10148051]
[1723867841870,0.1145,59132.0,59131.0,0.16910551]
[1723867842074,0.1135,59132.0,59131.0,0.14204403]
[1723867842281,0.1145,59132.0,59131.0,0.10483452]
[1723867842585,0.1155,59132.0,59131.0,0.10483452]
[1723867843081,0.1255,59132.0,59131.0,0.10483451]
[1723867847191,0.1255,59132.0,59131.0,0.067625]
[1723867847490,0.135262,59126.0,59125.0,0.00025369]
[1723867847793,0.7308,59126.0,59119.0,0.10137084]
[1723867847983,0.589568,59123.0,59119.0,0.10137084]
[1723867848288,0.959568,59123.0,59119.0,0.10137084]
[1723867848887,0.067637,59120.0,59119.0,0.10137084]
[1723867849086,0.551137,59120.0,59119.0,0.10137084]
[1723867849688,0.06764,59118.0,59117.0,0.00017041]
[1723867849893,0.81844,59118.0,59117.0,0.00017041]
[1723867851192,0.81948,59118.0,59117.0,0.00017041]
[1723867851994,0.82048,59118.0,59117.0,0.00017041]
[1723867853691,0.83043984,59118.0,59117.0,0.00017041]
[1723867853882,0.46963984,59118.0,59117.0,0.00017041]
[1723867854284,0.83043984,59118.0,59117.0,0.00017041]
[1723867856291,0.067648,59111.0,59107.0,0.01024219]
[1723867856496,0.0935,59109.0,59108.0,0.03722114]
[1723867857891,0.0935,59109.0,59106.0,0.01014942]
[1723867858092,0.0935,59109.0,59107.0,0.03722411]
[1723867858293,0.0935,59109.0,59107.0,0.17]
[1723867858795,0.0945,59109.0,59107.0,0.17]
[1723867859392,0.1155,59109.0,59108.0,0.03722386]
[1723867860196,0.1155,59109.0,59105.0,0.067654]
[1723867860387,0.0935,59106.0,59105.0,0.23750278]
[1723867860587,0.0935,59106.0,59105.0,0.31195028]
[1723867860985,0.0935,59106.0,59105.0,0.81951028]
[1723867861497,0.09354,59106.0,59105.0,0.31195028]
[1723867861793,0.09354,59106.0,59105.0,0.15195028]
[1723867862486,0.09454,59106.0,59105.0,0.15195028]
[1723867862682,0.10454,59106.0,59105.0,0.15195028]
[1723867862898,0.10554,59106.0,59105.0,0.15195028]
[1723867863197,0.10554,59106.0,59105.0,0.07750278]
[1723867863198,0.09554,59106.0,59105.0,0.07750278]
[1723867863389,0.10554,59106.0,59105.0,0.1519504]
[1723867863787,0.10554,59106.0,59105.0,0.07750278]
[1723867863788,0.09554,59106.0,59105.0,0.07750278]
[1723867863991,0.09554,59106.0,59105.0,0.1519504]
[1723867864595,0.09554,59106.0,59105.0,0.0842964]
[1723867864596,0.11554,59106.0,59105.0,0.0842964]
[1723867864787,0.183193,59106.0,59105.0,0.04707259]
[1723867867504,0.069693,59106.0,59105.0,0.04707259]
[1723867867704,0.163193,59106.0,59105.0,0.04707355]
[1723867868895,0.173193,59106.0,59105.0,0.04707355]
[1723867870998,0.173193,59106.0,59105.0,0.00984878]
[1723867871302,0.173193,59106.0,59101.0,0.161159]
[1723867871499,0.173193,59106.0,59102.0,0.03722476]
[1723867871806,0.173193,59106.0,59101.0,0.161159]
[1723867872007,0.173193,59106.0,59102.0,0.03722476]
[1723867872210,0.173193,59106.0,59103.0,0.03722476]
[1723867872407,0.173193,59106.0,59101.0,0.17113499]
[1723867872408,0.172193,59106.0,59101.0,0.17113499]
[1723867872611,0.172193,59106.0,59102.0,0.03722476]
[1723867872903,0.173193,59106.0,59103.0,0.03722476]
[1723867873097,0.173193,59106.0,59101.0,0.17113499]
[1723867873299,0.172193,59106.0,59102.0,0.03722476]
[1723867873498,0.173193,59106.0,59101.0,0.17113499]
[1723867873705,0.173193,59106.0,59102.0,0.03722426]
[1723867873907,0.173193,59106.0,59101.0,0.17113499]
[1723867874209,0.173193,59106.0,59102.0,0.03722489]
[1723867874501,0.173193,59106.0,59103.0,0.03722464]
[1723867874707,0.173193,59106.0,59104.0,0.03722396]
[1723867874903,0.173193,59106.0,59101.0,0.17113499]
[1723867875102,0.172193,59106.0,59102.0,0.07444781]
[1723867875409,0.173193,59106.0,59103.0,0.03722396]
[1723867875608,0.173193,59106.0,59104.0,0.03722396]
[1723867875808,0.173193,59106.0,59102.0,0.3608]
[1723867876200,0.22371106,59106.0,59103.0,0.12729108]
[1723867876405,0.22371106,59106.0,59104.0,0.12729108]
[1723867876604,0.05051806,59105.0,59102.0,0.3608]
[1723867876806,0.05051806,59105.0,59103.0,0.12751989]
[1723867877108,0.05051806,59105.0,59104.0,0.03722481]
[1723867878611,0.05071885,59105.0,59104.0,0.03722481]
[1723867878809,0.05171885,59105.0,59104.0,0.03722481]
[1723867879004,0.05271885,59105.0,59104.0,0.03722481]
[1723867879209,0.05171885,59105.0,59104.0,0.12172634]
[1723867879404,0.05271885,59105.0,59104.0,0.12172634]
[1723867880012,0.05271885,59105.0,59104.0,0.03722481]
[1723867880213,0.05271885,59105.0,59104.0,0.07444957]
[1723867880412,0.05271885,59105.0,59104.0,0.1589511]
[1723867880713,0.05271885,59105.0,59104.0,0.24913578]
[1723867881504,0.002,59105.0,59104.0,0.15895105]
[1723867882614,0.002,59105.0,59104.0,0.07444952]
[1723867882912,0.002,59105.0,59104.0,0.15895105]
[1723867883510,0.002,59105.0,59104.0,0.07444952]
[1723867883710,0.002,59105.0,59104.0,0.15895105]
[1723867884106,0.002,59105.0,59104.0,0.07444952]
[1723867884409,0.002,59105.0,59104.0,0.15895105]
[1723867884812,0.05272265,59105.0,59104.0,0.15895105]
[1723867885108,0.022,59105.0,59104.0,0.15895105]
[1723867885316,0.022,59105.0,59104.0,0.24927526]
[1723867887315,0.022,59105.0,59104.0,0.16477373]
[1723867888014,0.08935742,59105.0,59104.0,0.07444952]
[1723867888206,0.18235742,59105.0,59104.0,0.07444952]
[1723867888410,0.115,59105.0,59104.0,0.07444952]
[1723867888914,0.115,59105.0,59102.0,0.08454776]
[1723867888915,0.067657,59103.0,59102.0,0.08454776]
[1723867889213,0.411157,59103.0,59102.0,0.07445396]
[1723867889609,0.47880748,59103.0,59102.0,0.07445396]
[1723867890017,0.47980748,59103.0,59102.0,0.07445396]
[1723867890525,0.47984748,59103.0,59102.0,0.07445396]
[1723867890913,0.48084748,59103.0,59102.0,0.07445396]
[1723867892725,0.48084748,59103.0,59102.0,0.07445407]
[1723867893713,0.413197,59103.0,59102.0,0.07445407]
[1723867897225,0.067659,59102.0,59098.0,0.00987937]
[1723867897411,0.0935,59099.0,59098.0,0.3608]
[1723867897719,0.0935,59099.0,59098.0,0.43525594]
[1723867897720,0.1135,59099.0,59098.0,0.43525594]
[1723867897922,0.1135,59099.0,59098.0,0.07445594]
[1723867898125,0.1135,59099.0,59098.0,0.43525594]
[1723867898521,0.11354,59099.0,59098.0,0.43525594]
[1723867898823,0.11454,59099.0,59098.0,0.43525594]
[1723867899323,0.11554,59099.0,59098.0,0.43525594]
[1723867899524,0.183201,59099.0,59098.0,0.43525594]
[1723867900813,0.067663,59098.0,59097.0,0.00989651]
[1723867901013,0.307663,59098.0,59097.0,0.07446124]
[1723867901413,0.067664,59097.0,59093.0,0.00012057]
[1723867901608,0.0935,59094.0,59093.0,0.01029366]
[1723867901813,0.0935,59094.0,59093.0,0.07458329]
[1723867902011,0.0935,59094.0,59093.0,0.00012057]
[1723867902222,0.0935,59094.0,59093.0,0.07458299]
[1723867902427,0.0935,59095.0,59093.0,0.08486411]
[1723867902624,0.0935,59095.0,59094.0,0.07442242]
[1723867904815,0.0945,59095.0,59094.0,0.07442242]
[1723867905218,0.001,59095.0,59094.0,0.07442242]
[1723867905418,0.002,59095.0,59094.0,0.07442242]
[1723867908123,0.002,59095.0,59094.0,0.14195919]
[1723867909717,0.002,59095.0,59094.0,0.14208942]
[1723867910829,0.05266337,59095.0,59094.0,0.14208942]
[1723867911224,0.002,59095.0,59094.0,0.14208942]
[1723867913621,0.002,59095.0,59094.0,0.067667]
[1723867913821,0.002,59095.0,59094.0,0.1048972]
[1723867914121,0.002,59095.0,59094.0,0.067667]
[1723867914321,0.002,59095.0,59094.0,0.10489753]
[1723867914725,0.002,59095.0,59094.0,0.14212822]
[1723867917625,0.002,59095.0,59094.0,0.14212846]
[1723867920836,0.05271397,59095.0,59094.0,0.14212846]
[1723867921020,0.05271397,59095.0,59094.0,0.14212781]
[1723867921420,0.05271397,59095.0,59094.0,0.22667557]
[1723867921824,0.05271397,59095.0,59094.0,0.31824218]
[1723867922336,0.05271397,59095.0,59094.0,0.67904218]
[1723867922925,0.05271397,59095.0,59094.0,0.59449442]
[1723867923127,0.06759579,59098.0,59097.0,0.067664]
[1723867923328,0.05073017,59101.0,59097.0,0.89062639]
[1723867923532,0.17795506,59107.0,59100.0,0.0935]
[1723867923533,0.06764096,59103.0,59100.0,0.0935]
[1723867923731,0.06764096,59104.0,59101.0,0.07446081]
[1723867924034,0.1135,59104.0,59103.0,0.06760753]
[1723867924329,0.1135,59104.0,59103.0,0.1420648]
[1723867924540,0.181156,59104.0,59103.0,0.07445727]
[1723867924926,0.181156,59104.0,59103.0,0.07445582]
[1723867925140,0.182156,59104.0,59103.0,0.07445582]
[1723867926630,0.183156,59104.0,59103.0,0.07445582]
[1723867936436,0.183156,59104.0,59102.0,0.06760753]
[1723867936437,0.067657,59103.0,59102.0,0.06760753]
[1723867936630,0.36528,59103.0,59102.0,0.14206253]
[1723867937632,0.36528,59103.0,59102.0,0.074455]
[1723867937840,0.36532,59103.0,59102.0,0.074455]
[1723867938841,0.297697,59103.0,59102.0,0.074455]
[1723867939042,0.36532004,59103.0,59102.0,0.074455]
[1723867939542,0.36532004,59103.0,59102.0,0.14206253]
[1723867939833,0.36532004,59103.0,59102.0,0.074455]
[1723867940538,0.297697,59103.0,59102.0,0.074455]
[1723867941338,0.36532189,59103.0,59102.0,0.074455]
[1723867941533,0.297697,59103.0,59102.0,0.074455]
[1723867941732,0.36532201,59103.0,59102.0,0.074455]
[1723867942238,0.36532265,59103.0,59102.0,0.14206253]
[1723867942536,0.45882265,59103.0,59102.0,0.14206253]
[1723867943335,0.391197,59103.0,59102.0,0.14206253]
[1723867943530,0.45882271,59103.0,59102.0,0.14206253]
[1723867943835,0.391197,59103.0,59102.0,0.14206253]
[1723867944540,0.391197,59103.0,59102.0,0.14206265]
[1723867946040,0.391197,59103.0,59102.0,0.15976802]
[1723867948244,0.391197,59103.0,59102.0,0.09216049]
[1723867948445,0.391197,59103.0,59101.0,0.00987156]
[1723867948645,0.391197,59103.0,59102.0,0.09216046]
[1723867949041,0.391197,59103.0,59102.0,0.05493305]
[1723867949240,0.391197,59103.0,59102.0,0.09216074]
[1723867951950,0.391197,59103.0,59102.0,0.07445538]
[1723867952751,0.391197,59103.0,59102.0,0.07445573]
[1723867955952,0.391197,59103.0,59102.0,0.09216076]
[1723867956842,0.391197,59103.0,59102.0,0.09216015]
[1723867959139,0.391197,59103.0,59102.0,0.07445512]
[1723867960954,0.391197,59103.0,59099.0,0.16224513]
[1723867961153,0.06767227,59100.0,59099.0,0.16224513]
[1723867961343,0.06767227,59100.0,59099.0,0.23670123]
[1723867962149,0.06771227,59100.0,59099.0,0.23670123]
[1723867967157,0.27771227,59100.0,59099.0,0.23670123]
[1723867968950,0.27771227,59100.0,59099.0,0.33141929]
[1723867969346,0.27771227,59100.0,59099.0,0.3314195]
[1723867970251,0.06771227,59100.0,59099.0,0.4249195]
[1723867970553,4e-05,59100.0,59099.0,0.34040833]
[1723867970761,4e-05,59100.0,59099.0,0.38650833]
[1723867971351,0.06771227,59100.0,59099.0,0.48864763]
[1723867971556,0.04740347,59106.0,59100.0,0.57526]
[1723867971745,0.00025369,59109.0,59105.0,0.0935]
[1723867971945,0.00025369,59109.0,59108.0,0.0935]
[1723867972250,0.00025369,59109.0,59108.0,0.64699092]
[1723867972448,0.00025369,59109.0,59108.0,0.93346568]
[1723867972658,0.00025369,59109.0,59108.0,1.03453995]
[1723867972953,0.00025369,59109.0,59108.0,1.39534204]
[1723867973155,0.00025369,59109.0,59108.0,1.36191668]
[1723867973348,0.00625369,59109.0,59108.0,1.28746037]
[1723867973549,0.00625369,59109.0,59108.0,1.36189253]
[1723867973849,0.00025369,59109.0,59108.0,1.36189253]
[1723867974051,0.00425369,59109.0,59108.0,1.36189288]
[1723867974461,0.00425369,59109.0,59108.0,1.36214612]
[1723867974655,0.00825369,59109.0,59108.0,1.36214612]
[1723867975248,0.00825369,59109.0,59108.0,1.44627194]
[1723867976360,0.00825369,59109.0,59108.0,1.26394351]
[1723867977659,0.00825369,59109.0,59108.0,1.19963842]
[1723867977861,0.00825369,59109.0,59108.0,1.2740722]
[1723867978569,0.00825369,59109.0,59108.0,0.7665122]
[1723867981255,0.00825369,59109.0,59108.0,0.72929672]
[1723867981465,0.00825369,59109.0,59108.0,0.76651502]
[1723867985458,0.00825369,59109.0,59108.0,0.72929656]
[1723867985657,0.00825369,59109.0,59108.0,0.7665147]
[1723867985861,0.00825369,59109.0,59108.0,0.8337731]
[1723867986062,0.00825369,59109.0,59108.0,0.83377347]
[1723867987361,0.00825369,59109.0,59108.0,0.83377356]
[1723867988077,0.00825369,59109.0,59108.0,0.47297356]
[1723867988255,0.00825369,59109.0,59108.0,0.83377356]
[1723867988954,0.00825369,59109.0,59108.0,0.40571516]
[1723867989156,0.00825369,59109.0,59108.0,0.76651516]
[1723867989355,0.00825369,59109.0,59108.0,0.76651527]
[1723867989568,0.00825369,59109.0,59108.0,0.83375756]
[1723867989961,0.00825369,59109.0,59108.0,0.75932071]
[1723867990162,0.00825369,59109.0,59108.0,0.7665154]
[1723867990574,0.00825369,59109.0,59108.0,0.6730154]
[1723867990764,0.00825369,59109.0,59108.0,0.7665154]
[1723867993169,0.00825369,59109.0,59108.0,0.4057154]
[1723867993361,0.00825369,59109.0,59108.0,0.7665154]
[1723867994664,0.00825369,59109.0,59108.0,0.76651502]
[1723867995767,0.00825369,59109.0,59108.0,0.7841901]
[1723867996071,0.00825369,59109.0,59108.0,0.4233901]
[1723867996272,0.00825369,59109.0,59108.0,0.7841901]
[1723867998477,0.00825369,59109.0,59108.0,0.96684411]
[1723867999276,0.00825369,59109.0,59108.0,0.88271829]
[1723867999774,0.00825369,59109.0,59108.0,0.88271822]
[1723867999975,0.00825369,59109.0,59108.0,0.52191822]
[1723868000573,0.00825369,59109.0,59108.0,0.88271822]
[1723868001077,0.00825369,59109.0,59108.0,0.8827155]
[1723868002376,0.00825369,59109.0,59108.0,0.88271406]
[1723868003669,0.00825369,59109.0,59108.0,0.88271582]
[1723868004077,0.00825369,59109.0,59108.0,0.99049997]
[1723868006676,0.00825369,59109.0,59108.0,1.09622668]
[1723868007975,0.00825369,59109.0,59108.0,1.04133318]
[1723868008182,0.00825369,59109.0,59108.0,1.09622908]
[1723868008781,0.00825369,59109.0,59108.0,1.09622853]
[1723868011279,0.00825369,59109.0,59108.0,0.73542853]
[1723868011479,0.00825369,59109.0,59108.0,1.45702853]
[1723868011976,0.00825369,59109.0,59108.0,1.45661171]
[1723868012386,0.00825369,59109.0,59108.0,1.40171729]
[1723868012688,0.00825369,59109.0,59108.0,1.45661181]
[1723868012886,0.00825369,59109.0,59108.0,1.43893308]
[1723868013071,0.00825369,59109.0,59108.0,1.40171681]
[1723868013277,0.00825369,59109.0,59108.0,1.43893297]
[1723868014381,0.00825369,59109.0,59108.0,1.33320626]
[1723868014581,0.00825369,59109.0,59108.0,1.43893474]
[1723868015191,0.00825369,59109.0,59108.0,1.33320626]
[1723868015888,0.00825369,59109.0,59108.0,0.97240626]
[1723868016689,0.00825369,59109.0,59108.0,0.97273022]
[1723868017583,0.00825369,59109.0,59108.0,1.07845976]
[1723868019090,0.00825369,59109.0,59108.0,1.09613967]
[1723868022285,0.00825369,59109.0,59108.0,0.99041013]
[1723868022593,0.00825369,59109.0,59108.0,0.73534005]
[1723868022788,0.00825369,59109.0,59108.0,0.99041013]
[1723868023186,0.00825369,59109.0,59108.0,1.09613974]
[1723868023386,0.00825369,59109.0,59108.0,0.99041013]
[1723868023993,0.00825369,59109.0,59108.0,0.62961013]
[1723868024296,0.00825369,59109.0,59108.0,0.99041013]
[1723868025605,0.00825369,59109.0,59108.0,0.88249811]
[1723868025799,0.00825369,59109.0,59108.0,0.88266704]
[1723868027084,0.00825369,59109.0,59108.0,0.48465272]
[1723868027293,0.00825369,59109.0,59108.0,0.88266994]
[1723868029089,0.00825369,59109.0,59108.0,0.52186994]
[1723868029297,0.00825369,59109.0,59108.0,0.88266994]
[1723868029597,0.00825369,59109.0,59108.0,0.99075221]
[1723868029796,0.00825369,59109.0,59108.0,0.62995221]
[1723868030096,0.00825369,59109.0,59108.0,0.88266994]
[1723868030291,0.00825369,59109.0,59108.0,0.88281006]
[1723868031083,0.00825369,59109.0,59108.0,0.84559094]
[1723868031284,0.00825369,59109.0,59108.0,0.88280886]
[1723868031990,0.00825369,59109.0,59108.0,0.9910228]
[1723868034201,0.00825369,59109.0,59108.0,1.09675464]
[1723868034697,0.00825369,59109.0,59108.0,1.09667302]
[1723868035095,0.00825369,59109.0,59108.0,0.99094118]
[1723868035488,0.00825369,59109.0,59108.0,0.97326279]
[1723868035701,0.00825369,59109.0,59108.0,1.09667236]
[1723868036696,0.00825369,59109.0,59108.0,0.99094038]
[1723868037292,0.00825369,59109.0,59108.0,1.09667087]
[1723868038798,0.00825369,59109.0,59108.0,0.99094038]
[1723868039389,0.00825369,59109.0,59108.0,0.99118387]
[1723868039593,0.00825369,59109.0,59108.0,0.97350628]
[1723868039790,0.00825369,59109.0,59108.0,0.88291264]
[1723868040195,0.00825369,59109.0,59108.0,0.89913291]
[1723868040498,0.00825369,59109.0,59108.0,0.99124498]
[1723868041087,0.00825369,59109.0,59108.0,0.63044498]
[1723868041288,0.00825369,59109.0,59108.0,0.99124498]
[1723868041505,0.00825369,59109.0,59108.0,0.95402701]
[1723868041694,0.00825369,59109.0,59108.0,0.991245]
[1723868042594,0.00825369,59109.0,59108.0,0.99114828]
[1723868044506,0.00825369,59109.0,59108.0,0.63034828]
[1723868044806,0.00825369,59109.0,59108.0,0.99114828]
[1723868045899,0.00825369,59109.0,59108.0,0.63034828]
[1723868046106,0.00825369,59109.0,59108.0,0.99114828]
[1723868046697,0.00825369,59109.0,59108.0,0.89903604]
[1723868046892,0.00825369,59109.0,59108.0,0.95393294]
[1723868047093,0.00825369,59109.0,59108.0,0.99115099]
[1723868048301,0.00825369,59109.0,59108.0,1.09688296]
[1723868049400,0.00825369,59109.0,59108.0,0.99115099]
[1723868049598,0.00825369,59109.0,59108.0,0.63035099]
[1723868049800,0.00825369,59109.0,59108.0,0.99115099]
[1723868050301,0.00825369,59109.0,59108.0,0.63035099]
[1723868050699,0.00825369,59109.0,59108.0,0.99115099]
[1723868050901,0.00825369,59109.0,59108.0,0.89903604]
[1723868051102,0.00825369,59109.0,59108.0,0.99115032]
[1723868051401,0.00825369,59109.0,59108.0,0.8991469]
[1723868051598,0.00825369,59109.0,59108.0,0.99126229]
[1723868051799,0.00825369,59109.0,59108.0,0.88301079]
[1723868052399,0.00825369,59109.0,59108.0,0.88301093]
[1723868052795,0.00825369,59109.0,59108.0,0.88301121]
[1723868053207,0.00825369,59109.0,59108.0,0.52221121]
[1723868053411,0.00825369,59109.0,59108.0,0.88301121]
[1723868053904,0.3608,59122.0,59108.0,0.88301121]
[1723868053905,0.06767565,59118.0,59108.0,2.04308956]
[1723868054100,0.01,59118.0,59117.0,0.3608]
[1723868054299,0.01,59118.0,59117.0,0.71173279]
[1723868055006,0.01,59118.0,59117.0,0.67450177]
[1723868055209,0.014,59118.0,59117.0,0.77935462]
[1723868055807,0.01,59118.0,59117.0,0.78950699]
[1723868056004,0.024,59118.0,59117.0,0.78950699]
[1723868056603,0.028,59118.0,59117.0,0.78950699]
[1723868057606,0.024,59118.0,59117.0,0.78950699]
[1723868057808,0.038,59118.0,59117.0,0.42970699]
[1723868058113,0.038,59118.0,59117.0,0.79050699]
[1723868059510,0.038,59118.0,59117.0,0.42970699]
[1723868059717,0.038,59118.0,59117.0,0.79050699]
[1723868060111,0.038,59118.0,59117.0,0.42970699]
[1723868060312,0.038,59118.0,59117.0,0.79050699]
[1723868060518,0.038,59118.0,59117.0,0.42970699]
[1723868060821,0.038,59118.0,59117.0,0.78906241]
[1723868063023,0.038,59118.0,59117.0,0.71463671]
[1723868063221,0.038,59118.0,59117.0,0.42826239]
[1723868063522,0.038,59118.0,59117.0,0.78906239]
[1723868063723,0.038,59118.0,59117.0,0.78906454]
[1723868063909,0.038,59118.0,59117.0,0.42826454]
[1723868064112,0.038,59118.0,59117.0,0.78904341]
[1723868066120,0.038,59118.0,59117.0,0.42824341]
[1723868066423,0.038,59118.0,59117.0,0.78904341]
[1723868066915,0.038,59118.0,59117.0,0.42824341]
[1723868067324,0.038,59118.0,59117.0,0.69694364]
[1723868067517,0.038,59118.0,59117.0,0.78904023]
[1723868070228,0.038,59118.0,59117.0,0.42821657]
[1723868070625,0.038,59118.0,59117.0,0.78901657]
[1723868071423,0.038,59118.0,59117.0,0.42821657]
[1723868071617,0.038,59118.0,59117.0,0.78901657]
[1723868071823,0.038,59118.0,59117.0,0.88251657]
[1723868075032,0.038,59118.0,59117.0,0.52171657]
[1723868075334,0.038,59118.0,59117.0,0.88251657]
[1723868075717,0.038,59118.0,59117.0,0.88251797]
[1723868076432,0.038,59118.0,59117.0,0.88251815]
[1723868077133,0.038,59118.0,59117.0,0.52171815]
[1723868077429,0.038,59118.0,59117.0,0.88251815]
[1723868077633,0.038,59118.0,59117.0,0.88251934]
[1723868078127,0.038,59118.0,59117.0,0.52171934]
[1723868078324,0.038,59118.0,59117.0,0.53169173]
[1723868078528,0.038,59118.0,59117.0,0.62519173]
[1723868079535,0.038,59118.0,59117.0,0.62519648]
[1723868079834,0.038,59118.0,59117.0,0.53309237]
[1723868080033,0.038,59118.0,59117.0,0.62520502]
[1723868080630,0.038,59118.0,59117.0,0.26440502]
[1723868081337,0.038,59118.0,59117.0,0.17229237]
[1723868081533,0.038,59118.0,59117.0,0.24672691]
[1723868081733,0.038,59118.0,59117.0,0.17229237]
[1723868083037,0.038,59118.0,59117.0,0.20950964]
[1723868083638,0.038,59118.0,59117.0,0.22718874]
[1723868083829,0.038,59118.0,59117.0,0.26440601]
[1723868086135,0.038,59118.0,59117.0,0.26440593]
[1723868086634,0.038,59118.0,59117.0,0.31413011]
[1723868090132,0.038,59118.0,59117.0,0.276913]
[1723868090343,0.038,59118.0,59117.0,0.31412986]
[1723868090741,0.038,59118.0,59117.0,0.27691275]
[1723868090935,0.038,59118.0,59117.0,0.31412974]
[1723868092238,0.038,59118.0,59117.0,0.3318081]
[1723868095133,0.038,59118.0,59117.0,0.31412974]
[1723868096445,0.038,59118.0,59117.0,0.15322622]
[1723868096648,0.038,59118.0,59117.0,0.3317991]
[1723868096839,0.038,59118.0,59117.0,0.26440565]
[1723868097242,0.038,59118.0,59117.0,0.3317991]
[1723868101159,0.038,59118.0,59117.0,0.16075328]
[1723868101359,0.038,59118.0,59117.0,0.12353717]
[1723868101360,0.10567565,59118.0,59117.0,0.12353717]
[1723868101549,0.10567565,59118.0,59117.0,0.16075566]
[1723868102059,0.10567565,59118.0,59117.0,0.16075278]
[1723868102454,0.17331465,59118.0,59117.0,0.09311278]
[1723868102649,0.105639,59118.0,59117.0,0.09311278]
[1723868106362,0.105639,59118.0,59117.0,0.07543764]
[1723868108352,0.105639,59118.0,59117.0,0.14283109]
[1723868108973,0.105639,59118.0,59117.0,0.1056123]
[1723868109163,0.105639,59118.0,59117.0,0.14283115]
[1723868109361,0.105639,59118.0,59117.0,0.06839345]
[1723868109665,0.105639,59118.0,59117.0,0.14283117]
[1723868111665,0.038,59118.0,59117.0,0.21047117]
[1723868113364,0.038,59118.0,59117.0,0.13603345]
[1723868113568,0.038,59118.0,59117.0,0.21047115]
[1723868115564,0.10562124,59118.0,59117.0,0.1430777]
[1723868115968,0.09562124,59118.0,59117.0,0.67155583]
[1723868116171,0.09562124,59118.0,59117.0,0.7700623]
[1723868116172,0.028,59118.0,59117.0,0.7700623]
[1723868118672,0.028,59118.0,59117.0,0.76917838]
[1723868121168,0.028,59118.0,59117.0,0.40837838]
[1723868121368,0.028,59118.0,59117.0,0.76917838]
[1723868123569,0.028,59118.0,59117.0,0.87017177]
[1723868123762,0.028,59118.0,59117.0,0.8701696]
[1723868124168,0.028,59118.0,59117.0,0.87015318]
[1723868124875,0.028,59118.0,59117.0,1.37763318]
[1723868125178,0.028,59118.0,59117.0,1.783155]
[1723868126282,0.028,59118.0,59117.0,1.62175058]
[1723868126472,0.028,59118.0,59117.0,1.67662691]
[1723868126874,0.028,59118.0,59117.0,1.78279631]
[1723868127284,0.028,59118.0,59117.0,1.67662691]
[1723868127485,0.028,59118.0,59117.0,1.67532043]
[1723868130079,0.028,59118.0,59117.0,1.31452043]
[1723868130283,0.028,59118.0,59117.0,2.03612043]
[1723868130581,0.00025369,59123.0,59117.0,2.22157835]
[1723868130776,0.00025369,59123.0,59122.0,0.4543]
[1723868131078,0.00025369,59123.0,59122.0,0.79117383]
[1723868131778,0.01425369,59123.0,59122.0,0.85880883]
[1723868131979,0.01425369,59123.0,59122.0,0.85767598]
[1723868132282,0.01425369,59123.0,59122.0,1.76511598]
[1723868132680,0.02325369,59123.0,59122.0,1.76611598]
[1723868133378,0.00925369,59123.0,59122.0,1.76611598]
[1723868133584,0.01725369,59123.0,59122.0,1.76711598]
[1723868135686,0.01725369,59123.0,59122.0,2.12791598]
[1723868136382,0.01725369,59123.0,59122.0,2.36410254]
[1723868136568,0.01725369,59123.0,59122.0,2.45955928]
[1723868138283,0.01725369,59123.0,59122.0,2.42234352]
[1723868138489,0.01725369,59123.0,59122.0,2.45954833]
[1723868138782,0.01725369,59123.0,59122.0,2.45954845]
[1723868138987,0.008,59123.0,59122.0,2.45954845]
[1723868139179,1e-08,59123.0,59122.0,2.45954845]
[1723868139581,0.046,59137.0,59134.0,0.06762]
[1723868139784,0.076,59137.0,59136.0,0.0935]
[1723868139980,0.076,59137.0,59136.0,0.16790962]
[1723868140390,0.076,59137.0,59136.0,0.21829395]
[1723868140787,0.084,59137.0,59136.0,0.16790962]
[1723868140989,0.084,59137.0,59136.0,0.37828936]
[1723868141288,0.084,59137.0,59136.0,0.44590836]
[1723868142081,0.084,59137.0,59136.0,0.44690836]
[1723868142282,0.084,59137.0,59136.0,0.322119]
[1723868142482,0.076,59137.0,59136.0,0.39752548]
[1723868143578,0.076,59137.0,59136.0,0.76852989]
[1723868143778,0.076,59137.0,59136.0,0.73132665]
[1723868144592,0.076,59137.0,59136.0,0.37052665]
[1723868144783,0.076,59137.0,59136.0,0.22373608]
[1723868145190,0.076,59137.0,59136.0,0.17332341]
[1723868145387,0.076,59137.0,59136.0,0.21052743]
[1723868147788,0.076,59137.0,59136.0,0.21052747]
[1723868149691,0.12660902,59137.0,59136.0,0.26539476]
[1723868150096,0.076,59137.0,59136.0,0.42539476]
[1723868151702,0.076,59137.0,59136.0,0.33332341]
[1723868151896,0.12662814,59137.0,59136.0,0.42539228]
[1723868152091,0.076,59137.0,59136.0,0.42539228]
[1723868152294,0.12663815,59137.0,59136.0,0.38818693]
[1723868152491,0.12663815,59137.0,59136.0,0.4253901]